Cogmind - Beta 14 *** ADVENTURER MODE // 2024.11.02 @ 15:30:30 Player: Heretek Result: Self-destructed Performance ------------- Evolutions (1) 500 Regions Visited (3) 600 Robots Destroyed (76) 380 Value Destroyed (1650) 1650 Prototype IDs (0) 0 Alien Tech Used (0) 0 Bonus (0) 0 TOTAL SCORE: 3130 Bonus ------- None Cogmind --------- Core Integrity 32/400 Matter 300/300 Energy 100/100 System Corruption 0% Temperature Cool (0) Movement Walking (400) Ox4 Location -9/Storage Parts ------- > --- POWER (2) -------- (None) > --- PROPULSION (2) --- Aluminum Leg Aluminum Leg > --- UTILITY (2) ------ Huge Storage Unit Shield Generator > --- WEAPON (3) ------- Medium Laser Heavy Hammer > --- INVENTORY (25) --- Heat Sink Structural Scanner Power Shielding Small Laser Peak State ------------ > --- POWER ------------ Ion Engine Improved Ion Engine > --- PROPULSION ------- Light Treads Light Treads > --- UTILITY ---------- Huge Storage Unit Signal Interpreter > --- WEAPON ----------- Beam Rifle Heavy Assault Rifle Improved Light Cannon > --- INVENTORY -------- Light Treads Light Treads Aluminum Leg Aluminum Leg Heat Sink Structural Scanner Power Shielding Shield Generator Medium Laser Small Laser Light Assault Rifle [Rating: 14] Favorites ----------- Power Ion Engine Engine Ion Engine Propulsion Light Treads Treads Light Treads Leg Aluminum Leg Utility Signal Interpreter Device Sensor Array Storage Huge Storage Unit Processor Signal Interpreter Protection Power Shielding Weapon Medium Laser Energy Gun Medium Laser Ballistic Gun Heavy Assault Rifle Ballistic Cannon Improved Light Cannon Launcher Grenade Launcher Impact Weapon Heavy Hammer Build | -11 -10 -9 -9 ------- Run | Yrd Mat Mat Sto Slots Evolved 2 | . . 2 . Power 1 | . . 1 . Propulsion . | . . . . Utility . | . . . . Weapon 1 | . . 1 . Parts Attached 47 | 8 7 13 19 Power 6 | 1 . 2 3 Engine 6 | 1 . 2 3 Core . | . . . . Reactor . | . . . . Propulsion 13 | 2 . 5 6 Treads 7 | . . 3 4 Leg 6 | 2 . 2 2 Wheel . | . . . . Hover . | . . . . Flight . | . . . . Utility 10 | 1 6 2 1 Device 3 | 1 1 . 1 Storage 5 | . 3 2 . Processor 1 | . 1 . . Hackware . | . . . . Protection 1 | . 1 . . Artifact . | . . . . Weapon 18 | 4 1 4 9 Energy Gun 8 | 3 . 2 3 Energy Cannon . | . . . . Ballistic Gun 7 | 1 . 2 4 Ballistic Cannon 1 | . . . 1 Launcher 1 | . 1 . . Special Weapon . | . . . . Impact Weapon 1 | . . . 1 Slashing Weapon . | . . . . Piercing Weapon . | . . . . Special Melee Weapon . | . . . . Unidentified Prototypes . | . . . . Parts Lost 17 | . . 4 13 Power 4 | . . 1 3 Propulsion 5 | . . 1 4 Utility 1 | . . 1 . Weapon 7 | . . 1 6 Highest Loss Streak 5 | . . 1 5 To Critical Strikes . | . . . . Average Slot Usage (%) 92 | . 98 86 93 Engine 15 | . 14 10 17 Treads 13 | . . 8 20 Leg 8 | . 28 13 . Device 2 | . 10 . . Storage 9 | . 6 9 11 Processor 10 | . 6 11 10 Energy Gun 13 | . 14 14 12 Ballistic Gun 7 | . . 7 10 Ballistic Cannon 2 | . . . 4 Launcher 6 | . 13 11 1 Impact Weapon 1 | . . . 3 Peak Build Rating 14 | 6 7 12 14 Average Rating 9 | 4 6 9 11 On Entrance 5 | . 6 7 10 Naked Turns . | . . . . Heaviest Build 102 | 7 29 101 102 Greatest Support 40 | 20 20 40 40 Greatest Overweight (x) 4 | . 1 3 4 Average Overweight (x) 1 | . . 1 2 Largest Inventory Capacity 25 | 5 15 25 25 Average Capacity 18 | 5 6 17 25 Most Carried 13 | 5 5 8 13 Average Carried 6 | 1 3 6 8 Final Capacity 25 | 5 5 25 25 Final Carried 7 | 5 4 7 4 Class Distribution -------------------- 28% | Mutant 27% | Scavenger-Gunner 17% | Scavenger-Bomber 10% | Gunner 10% | Scavenger-Mutant 5% | Bomber Dominant Class ---------------- Mutant | -10/Materials Scavenger-Bomber | -9/Materials Scavenger-Gunner | -9/Storage Resources | -11 -10 -9 -9 ----------- Run | Yrd Mat Mat Sto Matter Collected 1482 | 263 186 270 763 Remotely . | . . . . Salvage Created 2013 | 40 311 426 1236 Parts 155 | 5 22 41 87 Haulers Intercepted 3 | . 1 . 2 Recyclers Shooed 3 | . 1 2 . Parts Field Recycled . | . . . . Retrieved Matter . | . . . . Parts Self-Destructed . | . . . . Prevented . | . . . . Kills | -11 -10 -9 -9 ------- Run | Yrd Mat Mat Sto Combat Hostiles Destroyed 52 | 1 5 17 29 Melee 3 | . . . 3 Guns 30 | 1 2 7 20 Cannons 5 | . . . 5 AOE 13 | . 3 10 . Classes Destroyed 10 | 1 5 2 2 Worker 5 | . 2 1 2 Builder 6 | . . 5 1 Hauler 3 | . 1 . 2 Recycler 2 | . 1 . 1 Operator 1 | . . . 1 Watcher 7 | . 3 2 2 Swarmer 20 | . 2 7 11 Grunt 18 | 1 3 6 8 Brawler 1 | . . . 1 Sentry 13 | . . 4 9 Best Kill Streak 10 | 1 3 10 4 Combat Bots Only 6 | 1 2 6 4 Max Kills in Single Turn 3 | 1 2 3 2 Gunslinging 1 | . . . 1 Exploded 2 | . 1 2 . Melee 1 | . . . 1 Uniques/NPCs Destroyed . | . . . . Combat | -11 -10 -9 -9 -------- Run | Yrd Mat Mat Sto Hostile Shots Fired 392 | 10 17 64 301 Missed 107 | 1 8 19 79 Damage Taken 2384 | 74 63 535 1712 Core 390 | 8 14 89 279 Absorbed by Shields 12 | . . . 12 Ignored by Resistances 740 | 22 20 161 537 Core Remaining (%) 93 | 96 91 . . Volleys Fired 164 | 6 25 37 96 Largest 3 | 2 2 3 3 Hottest 118 | 60 80 118 118 Shots Fired 362 | 12 34 79 237 Gun 292 | 12 25 57 198 Cannon 39 | . . . 39 Launcher 31 | . 9 22 . Special . | . . . . Kinetic 180 | 6 . 32 142 Thermal 151 | 6 25 25 95 Explosive 31 | . 9 22 . Electromagnetic . | . . . . Robot Hit Streak 26 | 5 6 12 26 Robot Miss Streak 4 | 2 3 4 3 Penetration Max . | . . . . Secondary Targets 4 | . . . 4 Max Gunslinging Chain 1 | . . . 1 Shots Hit Robots 240 | 8 15 43 174 Core Hits 116 | 2 16 44 54 Critical Kills 2 | . . . 2 Critical Parts Destroyed 4 | . . . 4 Critical Strikes 13 | . 1 2 10 Burn 6 | . 1 2 3 Destroy 1 | . . . 1 Blast 1 | . . . 1 Smash 5 | . . . 5 Melee Attacks 16 | . . . 16 Impact 16 | . . . 16 Slashing . | . . . . Piercing . | . . . . Sneak Attacks 3 | . . . 3 Combat Hostiles . | . . . . Follow-up Attacks . | . . . . Damage Inflicted 4938 | 108 483 1633 2714 Guns 2241 | 108 152 495 1486 Cannons 536 | . . . 536 Explosions 1469 | . 331 1138 . Melee 692 | . . . 692 Ramming . | . . . . Kinetic 1595 | 53 . 252 1290 Thermal 1182 | 55 152 243 732 Explosive 1469 | . 331 1138 . Electromagnetic . | . . . . Impact 692 | . . . 692 Slashing . | . . . . Piercing . | . . . . Highest Corruption . | . . . . Average Corruption . | . . . . Corruption Purged . | . . . . Corruption Blocked . | . . . . Overload Shots . | . . . . Overflow Damage 268 | . 2 36 230 Projectiles 8 | . . . 8 Explosions 38 | . 2 36 . Melee 222 | . . . 222 Knockbacks 8 | . . . 8 Impact 2 | . . . 2 Kinetic 6 | . . . 6 Secondary . | . . . . Self-Inflicted Damage 118 | . . 118 . Shots 7 | . . 7 . Rammed . | . . . . Targets Rammed . | . . . . Kicked . | . . . . Crushed . | . . . . Highest Temperature 452 | 24 45 168 452 Average Temperature 107 | 13 15 46 135 Received Heat Transfer 818 | 54 15 186 563 Effects 12 | . . . 12 Shutdowns 1 | . . . 1 Energy Bleed 1 | . . . 1 Interference 8 | . . . 8 Matter Decay 2 | . . . 2 Siege Activations . | . . . . Robots Corrupted 3 | . . . 3 Combat Hostiles 1 | . . . 1 Parts Fried 8 | . . . 8 Impact Corruptions 10 | . . . 10 Robots Melted . | . . . . Combat Hostiles . | . . . . Parts Melted 7 | . . 3 4 Heat Transferred 3475 | 125 518 634 2198 Parts Sabotaged . | . . . . Parts Stolen . | . . . . Parts Stripped . | . . . . Power Chain Reactions . | . . . . Alert | -11 -10 -9 -9 ------- Run | Yrd Mat Mat Sto Peak Influence 322 | 20 166 322 211 Initial 74 | . 11 21 74 Average 101 | 9 85 158 82 Maximum Alert Level 1 | . . 1 1 Low Security (%) 87 | 100 100 59 99 Level 1 12 | . . 40 . Level 2 . | . . . . Level 3 . | . . . . Level 4 . | . . . . Level 5 . | . . . . High Security . | . . . . Max Security . | . . . . Squads Dispatched 7 | . . 1 6 Investigation 1 | . . . 1 Extermination . | . . . . Reinforcement 3 | . . 1 2 Assault . | . . . . Garrison 3 | . . . 3 Intercept . | . . . . Searches Triggered . | . . . . Construction Impeded . | . . . . Haulers Reinforced . | . . . . Active Scanning Responses . | . . . . Cargo Convoy Interrupts . | . . . . Stealth | -11 -10 -9 -9 --------- Run | Yrd Mat Mat Sto Distress Signals 5 | . 2 1 2 Communications Jammed . | . . . . Distress Signals . | . . . . Times Spotted 71 | 1 13 21 36 Peak Tracking Total 5 | 1 2 4 5 Tactical Retreats 1 | . . . 1 Traps | -11 -10 -9 -9 ------- Run | Yrd Mat Mat Sto Traps Triggered 2 | . . . 2 Indirectly . | . . . . Trap Hack Attempts . | . . . . Triggered . | . . . . Disarmed . | . . . . Reprogrammed . | . . . . Reused . | . . . . Traps Extracted . | . . . . Installed . | . . . . Triggered . | . . . . Machines | -11 -10 -9 -9 ---------- Run | Yrd Mat Mat Sto Machines Disabled 1 | . . 1 . Max in Single Turn 1 | . . 1 . Machines Repaired . | . . . . Machines Dismantled . | . . . . Machines Sabotaged . | . . . . Overloaded Fab Kills . | . . . . Hacking | -11 -10 -9 -9 --------- Run | Yrd Mat Mat Sto Machines Accessed 9 | . 1 3 5 Terminals 5 | . . 2 3 Fabricators . | . . . . Repair Stations 1 | . . . 1 Recycling Units 1 | . 1 . . Scanalyzers 1 | . . 1 . Garrison Access 1 | . . . 1 Total Hacks 14 | . 1 5 8 Successful 10 | . 1 5 4 Failed 4 | . . . 4 Catastrophic . | . . . . Database Lockouts . | . . . . Manual 19 | . 5 . 14 Terminals 8 | . . 3 5 Fabricators . | . . . . Repair Stations 1 | . . . 1 Recycling Units 1 | . 1 . . Scanalyzers 2 | . . 2 . Garrison Access 2 | . . . 2 Terminal Hacks 6 | . . 3 3 Record 3 | . . . 3 Alert Level 1 | . . 1 . Dispatch Records 1 | . . 1 . Maintenance Status 1 | . . 1 . Fabricator Hacks . | . . . . Repair Station Hacks . | . . . . Recycling Unit Hacks 1 | . 1 . . Retrieve Components 1 | . 1 . . Scanalyzer 2 | . . 2 . Insert Component 1 | . . 1 . Analyze 1 | . . 1 . Garrison Access Hacks 1 | . . . 1 Unlock Access 1 | . . . 1 Unauthorized Hacks . | . . . . Terminals . | . . . . Fabricators . | . . . . Repair Stations . | . . . . Recycling Units . | . . . . Scanalyzers . | . . . . Garrison Access . | . . . . Data Cores Recovered . | . . . . Used . | . . . . Hacking Detections 6 | . 1 . 5 Full Trace Events 1 | . . . 1 Feedback Events . | . . . . Feedback Blocked . | . . . . Robot Schematics Acquired . | . . . . Robots Built . | . . . . Authchips . | . . . . Time . | . . . . Total Robot Build Rating . | . . . . Part Schematics Acquired 1 | . . 1 . Parts Built . | . . . . Authchips . | . . . . Time . | . . . . Total Part Build Rating . | . . . . Parts Repaired . | . . . . Time . | . . . . Parts Recycled . | . . . . Recycled Matter . | . . . . Retrieved Matter . | . . . . Retrieved Components 9 | . 9 . . Parts Scanalyzed 1 | . . 1 . Part Schematics Acquired 1 | . . 1 . Parts Damaged . | . . . . Bothacking | -11 -10 -9 -9 ------------ Run | Yrd Mat Mat Sto Used RIF Installer . | . . . . Robots Hacked . | . . . . Non-combat . | . . . . Combat . | . . . . Robot Hacks Applied . | . . . . Relay Couplers Released . | . . . . Fabnet Peak Effective % . | . . . . Robots Rewired . | . . . . Allies Hacked . | . . . . Hacks Repelled . | . . . . Allies | -11 -10 -9 -9 -------- Run | Yrd Mat Mat Sto Total Allies . | . . . . Largest Group . | . . . . Highest-Rated Group . | . . . . Highest-Rated Ally . | . . . . Total Orders . | . . . . Ally Attacks . | . . . . Total Damage . | . . . . Kills . | . . . . Allies Corrupted . | . . . . Allies Melted . | . . . . Intel | -11 -10 -9 -9 ------- Run | Yrd Mat Mat Sto Robot Analysis Total . | . . . . Derelict Logs Recovered . | . . . . Drone Launches . | . . . . Drone Recoveries . | . . . . Exploration | -11 -10 -9 -9 ------------- Run | Yrd Mat Mat Sto Turns Passed 4056 | 201 625 1184 2046 Spaces Moved 1568 | 151 432 488 497 Core 28 | 28 . . . Treads 639 | . . 151 488 Legs 901 | 123 432 337 9 Wheels . | . . . . Hover . | . . . . Flight . | . . . . Fastest Speed 50 | 50 120 120 320 Average Speed 216 | 107 124 211 333 Slowest Speed 480 | 120 190 330 480 Overloaded Moves . | . . . . Propulsion Burnouts . | . . . . Robots Hopped . | . . . . Cave-ins Triggered . | . . . . Exploration Rate (%) 44 | 8 72 39 58 Regions Visited 3 Branch Regions 1 Pre-discovered Areas . | . . . . Known Exits Taken 2 | . 1 1 . Unknown Exits Taken 1 | 1 . . . Scrap Searched . | . . . . Spaces Dug 5 | . . 5 . Terrain Destroyed 138 | . 28 110 . Melee . | . . . . Projectile . | . . . . AOE 138 | . 28 110 . Terrain Rammed . | . . . . Walls Destroyed . | . . . . Machines Disabled . | . . . . Actions | -11 -10 -9 -9 --------- Run | Yrd Mat Mat Sto Total 1908 | 177 487 572 672 Wait 51 | 2 4 22 23 Move 1565 | 150 431 487 497 Hop . | . . . . Pick Up 43 | 11 10 10 12 Fast Attach . | . . . . Attach 28 | 6 4 6 12 Detach 1 | . . 1 . Swap 19 | 2 3 7 7 Drop 16 | . 10 2 4 Fire 164 | 6 25 37 96 Melee 16 | . . . 16 Ram . | . . . . Kick . | . . . . Crush . | . . . . Escape Stasis 4 | . . . 4 Rewire 1 | . . . 1 Trap . | . . . . Miscellaneous . | . . . . Route ------- -11/Scrapyard -10/Materials (discovered 5 exits: *Mat x3 / [*Min x2]) -9/Materials (discovered 3 exits: [*Min] / *Sto x2) -9/Storage (discovered 1 exit: Gar) History --------- Turn | Location | Event 2 | -11/Scrapyard | Met Revision 17 78 | -11/Scrapyard | Discovered new exit (range 8) 202 | -11/Scrapyard | Entered Materials 304 | -10/Materials | Build established: Mutant 382 | -10/Materials | Discovered new exit (range 14) 599 | -10/Materials | Discovered new exit (range 5) 642 | -10/Materials | Discovered new exit (range 13) 680 | -10/Materials | Discovered new exit (range 10) 716 | -10/Materials | Discovered new exit (range 13) 826 | -10/Materials | Identified exit to Materials 827 | -10/Materials | Entered another Materials area 827 | -9/Materials | Evolved 2 slots: Power x1, Weapon x1 827 | -9/Materials | Discovered new exit (range 13) 1162 | -9/Materials | Identified exit to Storage 1198 | -9/Materials | Build established: Gunner 1532 | -9/Materials | Discovered exit to Storage (range 15) 1556 | -9/Materials | Discovered new exit (range 16) 1856 | -9/Materials | Build established: Scavenger-Bomber 2011 | -9/Materials | Entered Storage 2638 | -9/Storage | Build established: Scavenger-Gunner 3255 | -9/Storage | Identified exit to Garrison 3261 | -9/Storage | Garrison activated, responded to threat 3493 | -9/Storage | Core integrity fell below 50% 3749 | -9/Storage | Build established: Scavenger-Mutant 3832 | -9/Storage | Lost 5 parts (1p2n2w) 3997 | -9/Storage | Core integrity fell below 20% 4057 | -9/Storage | Self-destructed Last Messages --------------- effect. Y-45 Defender suffers critical hit (Smash). Y-45 Defender destroyed. R-06 Scavenger collects Imp. Ion Engine. R-06 Scavenger collects Heat Sink. K-01 Serf collects debris. Sneak attack on K-01 Serf. K-01 Serf suffers critical hit (Smash). K-01 Serf destroyed. R-06 Scavenger collects Med. Matter Pod. Sneak attack on R-06 Scavenger. Destroyed Tractor Beam. Destroyed Lgt. Ion Engine. R-06 Scavenger system corrupted by crushing effect. R-06 Scavenger knocked back. R-06 Scavenger system terminally corrupted. Sml. Storage Unit fried. Com. Wheel fried. R-06 Scavenger collects Lgt. Ion Engine. Map ----- +----------------------------------------------------+ | ??????#+## #??????# ! # #?? | | ??????# ######## ! # #?? | | ??????+ + !%####+##### | | ??????# # % + | | ??????# %%####+### | | ??????# ^^ % %% %% | | ??????# #####! | | ?######+#???# ^[ % | | ?# %#???# ^^^ ############ | | # // ##### !!=^^ #??????????? | | ## // ##""" ^^= """#??????????? | | ?# // ##"T != Y"#??????????? | | ?# ##""" """#??????????? | | ?# ##### #??????????? | | ?#####+## +??????????? | | ?????# #"T"# #??????????? | | ?????# ##### #??????????? | | ?????# #????+#??????????? | | ?????# ####????????????????? | | ?????# #???????????????????? | | ?????# #???????????????????? | | ?????# #???????????????????? | | ?????# ##+#####???????????????? | | ?????# #? ! #???????????????? | | ?????# # #???????????????? | | ?????# !@# """#???????????????? | | ?????# =%+ """#???????????????? | | ?????# ###%# """#???????????????? | | ?????#+??#*# #???????????????? | | ?????????#%#?######???????????????? | | ?????????#%#??????????????????????? | | ?????????#!#??????????????????????? | | ?????????# #??????????????????????? | | ?????????# #??????????????????????? | | ?????????#a#??????????????????????? | | ????????? ??????????????????????? | | ????????? ??????????????????????? | | ????????? ??????????????????????? | | ?????????# #??????????????????????? | | ?????????# #??????????????????????? | | ?????????? ???????????????????????? | | ?????????? ???????????????????????? | | ?????????? ???????????????????????? | | ?????????? ??????##########???????? | | ??????????+??????# #???????? | | ?????????????????# #???????? | | ?????????????????# """" #???????? | | ?????????????????# "??" #???????? | | ?????????????????# "??" #???????? | | ?????????????????# "??" #???????? | +----------------------------------------------------+ Best States ------------- Heat Dissipation 35 Energy Generation 17 Energy Capacity 415 Matter Stores 321 Matter Capacity 500 Sight Range 16 Robot Scan Range 14 Terrain Scan Density 10 Resistance: KI 20 Resistance: TH 20 Resistance: EX 20 Resistance: EM 20 Resistance: I 20 Resistance: S 20 Resistance: P 20 Power Shielding 33 Evasion (%) 55 Recoil Reduction 2 Offensive Hacking 10 Item Schematics ----------------- Aluminum Leg | -9/Materials | Scanalyzed Robot Schematics ------------------ None Fabricated ------------ Nothing Alien Tech Used ----------------- None Achievements -------------- Crack Shot Loot Pinata One Hack Too Far Power Corrupts Troublemaker Uninvited Guest Challenges ------------ None Game ------ Seed GreatPortableTorch Manual? 0 Play Time 01:17:46 Cumulative 1.2 hours Start 2024.10.31 @ 18:20:09 End 2024.11.02 @ 15:30:30 Sessions 7 Manual Loads 0 Difficulty Adventurer Special Mode None Game No. 1 Rogue 0 Adventurer 1 Explorer 0 Win Type - Total 0 Types 0/0/0/0/0/0/0/0/0 Lore% 0 Gallery% 2 Achievement% 2 Wizard Run 0 Options --------- Layout 1 ASCII 0 Keyboard 0 Movement Arrows Keybinds 0 Fullscreen 1 Font 24/Smallcaps Map View 50x35 Zoom Use 1% Tactical HUD 0 Map Filters NONE Filters NONE Steam 1 RUN: 5ebc89b6-4c5e-4c46-ad4b-8337748e138d